{"text_format":"3","workbook":"xlsx","n_sheets":3,"sheets":["INICIO","PLAN PRESUPUESTARIO MARKETING","GRÁFICO DE CATEGORÍAS"],"not_rendered":{"charts":1,"defined_names":4,"pivot_tables":1},"read":"whole","date_system":"1900"}

{"sheet":"INICIO","index":0,"n_rows":7,"n_cols":2,"rows_kept":7}
[null,"Acerca de la plantilla"]
[null,"Cree un gráfico de categorías y un plan presupuesto marketing en este libro."]
[null,"Especifique las categorías, cantidades y costes en la tabla de la hoja de cálculo Plan presupuesto marketing. Los costes del evento y el total de marketing general estimado se calculan automáticamente."]
[null,"El gráfico de columnas agrupadas se actualiza automáticamente en la hoja de cálculo Gráficos de categorías."]
[null,"Nota: "]
[null,"Se proporcionan instrucciones adicionales en la columna A de la hoja de cálculo PLAN PRESUPUESTO MARKETING y GRÁFICOS DE CATEGORÍAS. Este texto se ha ocultado a propósito. Para eliminar el texto, seleccione la columna A y, a continuación, ELIMINAR. Para mostrar el texto, seleccione la columna A y, a continuación, cambie el color de fuente."]
[null,"Para obtener más información sobre las tablas, presione las teclas MAYÚS y F10 dentro de una tabla, seleccione la opción TABLA y, después, TEXTO ALTERNATIVO. En las tablas dinámicas, presione MAYÚS y F10 en una tabla, seleccione OPCIONES DE TABLA DINÁMICA y, después, seleccione la pestaña TEXTO ALTERNATIVO."]

{"sheet":"PLAN PRESUPUESTARIO MARKETING","index":1,"n_rows":61,"n_cols":7,"rows_kept":61,"merged":[[2,4,7,6],[3,1,3,2],[4,1,4,2],[5,1,5,2],[6,1,6,2]]}
["Cree un plan de presupuesto de marketing en esta hoja de cálculo. Encontrará instrucciones útiles sobre cómo usar esta hoja de cálculo en las celdas de esta columna. Presione la flecha abajo para empezar."]
["El título de este libro se encuentra en la celda de la derecha.","PLAN PRESUPUESTARIO MARKETING"]
["La segmentación para filtrar la tabla de datos por categoría principal se encuentra en la celda E3.",{"$nulls":3},"La segmentación para filtrar la tabla de datos por categoría principal se encuentra en esta celda."]
["Escriba el número de asistentes en la celda D4.","NÚMERO DE ASISTENTES",null,50]
["Los costes de eventos se calculan automáticamente en la celda D5.","COSTES DEL EVENTO",null,{"$f":"SUMIF(Datos[Categoría principal],\"Evento\",Datos[Subtotal estimado])","v":{"v":2500,"d":"2,500.00 €"}}]
["El precio del evento por persona se calcula automáticamente en la celda D6.","PRECIO DEL EVENTO por PERSONA",null,{"$f":"CostesEvento/NúmeroInvitados","v":{"v":50,"d":"50.00 €"}}]
["El total estimado de marketing general se calcula automáticamente en la celda D7.","SUMA TOTAL ESTIMADA DE MARKETING",null,{"$f":"SUMIF(Datos[Categoría principal],\"<>Evento\",Datos[Subtotal estimado])","v":{"v":45743,"d":"45,743.00 €"}}]
["El subtotal se calcula automáticamente en la celda D8. La instrucción siguiente está en la celda A10.","SUBTOTAL",null,{"$f":"SUBTOTAL(109,Datos[Subtotal estimado])","v":{"v":48243,"d":"48,243.00 €"}}]
[]
["Escriba los detalles en la tabla de datos empezando por la celda de la derecha.","Categoría principal","Categoría secundaria","Cantidad estimada","Coste estimado por unidad","Subtotal estimado","Notas"]
[null,"Investigación","Precios de la empresa de investigación",2,{"v":2300,"d":"2,300.00 €"},{"$f":"Datos[[#This Row],[Cantidad estimada]]*Datos[[#This Row],[Coste estimado por unidad]]","v":{"v":4600,"d":"4,600.00 €"}}]
[null,"Investigación","Investigación en la web",1,{"v":1100,"d":"1,100.00 €"},{"$f":"Datos[[#This Row],[Cantidad estimada]]*Datos[[#This Row],[Coste estimado por unidad]]","v":{"v":1100,"d":"1,100.00 €"}}]
[null,"Investigación","Investigación independiente",3,{"v":300,"d":"300.00 €"},{"$f":"Datos[[#This Row],[Cantidad estimada]]*Datos[[#This Row],[Coste estimado por unidad]]","v":{"v":900,"d":"900.00 €"}}]
[null,"Investigación","Otra investigación",2,{"v":250,"d":"250.00 €"},{"$f":"Datos[[#This Row],[Cantidad estimada]]*Datos[[#This Row],[Coste estimado por unidad]]","v":{"v":500,"d":"500.00 €"}}]
[null,"Comunicaciones","Folletos promocionales",{"v":5000,"d":"5,000"},{"v":0.15,"d":"0.15 €"},{"$f":"Datos[[#This Row],[Cantidad estimada]]*Datos[[#This Row],[Coste estimado por unidad]]","v":{"v":750,"d":"750.00 €"}}]
[null,"Comunicaciones","Televisión",5,{"v":4000,"d":"4,000.00 €"},{"$f":"Datos[[#This Row],[Cantidad estimada]]*Datos[[#This Row],[Coste estimado por unidad]]","v":{"v":20000,"d":"20,000.00 €"}}]
[null,"Comunicaciones","Radio",13,{"v":350,"d":"350.00 €"},{"$f":"Datos[[#This Row],[Cantidad estimada]]*Datos[[#This Row],[Coste estimado por unidad]]","v":{"v":4550,"d":"4,550.00 €"}}]
[null,"Comunicaciones","Web",1,{"v":350,"d":"350.00 €"},{"$f":"Datos[[#This Row],[Cantidad estimada]]*Datos[[#This Row],[Coste estimado por unidad]]","v":{"v":350,"d":"350.00 €"}}]
[null,"Redes","Redes",null,null,{"$f":"Datos[[#This Row],[Cantidad estimada]]*Datos[[#This Row],[Coste estimado por unidad]]","v":{"v":0,"d":"0.00 €"}}]
[null,"Redes","Pertenencias",3,{"v":50,"d":"50.00 €"},{"$f":"Datos[[#This Row],[Cantidad estimada]]*Datos[[#This Row],[Coste estimado por unidad]]","v":{"v":150,"d":"150.00 €"}}]
[null,"Redes","Afiliaciones",2,{"v":20,"d":"20.00 €"},{"$f":"Datos[[#This Row],[Cantidad estimada]]*Datos[[#This Row],[Coste estimado por unidad]]","v":{"v":40,"d":"40.00 €"}}]
[null,"Redes","Suscripciones",2,{"v":32,"d":"32.00 €"},{"$f":"Datos[[#This Row],[Cantidad estimada]]*Datos[[#This Row],[Coste estimado por unidad]]","v":{"v":64,"d":"64.00 €"}}]
[null,"Evento","Número de asistentes",50,null,{"$f":"Datos[[#This Row],[Cantidad estimada]]*Datos[[#This Row],[Coste estimado por unidad]]","v":{"v":0,"d":"0.00 €"}}]
[null,"Evento","Comidas (desayuno, comida o cena)",null,null,{"$f":"Datos[[#This Row],[Cantidad estimada]]*Datos[[#This Row],[Coste estimado por unidad]]","v":{"v":0,"d":"0.00 €"}}]
[null,"Evento","Comida",null,{"v":23,"d":"23.00 €"},{"$f":"Datos[[#This Row],[Cantidad estimada]]*Datos[[#This Row],[Coste estimado por unidad]]","v":{"v":0,"d":"0.00 €"}}]
[null,"Evento","Impuestos (10 %)",null,{"v":2.3000000000000003,"d":"2.30 €"},{"$f":"Datos[[#This Row],[Cantidad estimada]]*Datos[[#This Row],[Coste estimado por unidad]]","v":{"v":0,"d":"0.00 €"}}]
[null,"Evento","Gratificación de comida y bebida (20 %)",null,{"v":5.0600000000000005,"d":"5.06 €"},{"$f":"Datos[[#This Row],[Cantidad estimada]]*Datos[[#This Row],[Coste estimado por unidad]]","v":{"v":0,"d":"0.00 €"}}]
[null,"Evento","Servicios de ayuda de cámara",1,{"v":300,"d":"300.00 €"},{"$f":"Datos[[#This Row],[Cantidad estimada]]*Datos[[#This Row],[Coste estimado por unidad]]","v":{"v":300,"d":"300.00 €"}}]
[null,"Evento","Entretenimiento #1",1,{"v":800,"d":"800.00 €"},{"$f":"Datos[[#This Row],[Cantidad estimada]]*Datos[[#This Row],[Coste estimado por unidad]]","v":{"v":800,"d":"800.00 €"}}]
[null,"Evento","Entretenimiento #2",1,{"v":1200,"d":"1,200.00 €"},{"$f":"Datos[[#This Row],[Cantidad estimada]]*Datos[[#This Row],[Coste estimado por unidad]]","v":{"v":1200,"d":"1,200.00 €"}}]
[null,"Evento","Otros servicios",1,{"v":200,"d":"200.00 €"},{"$f":"Datos[[#This Row],[Cantidad estimada]]*Datos[[#This Row],[Coste estimado por unidad]]","v":{"v":200,"d":"200.00 €"}}]
[null,"Servicios de audio y vídeo","Sistema básico de altavoces y podio",1,{"v":0,"d":"0.00 €"},{"$f":"Datos[[#This Row],[Cantidad estimada]]*Datos[[#This Row],[Coste estimado por unidad]]","v":{"v":0,"d":"0.00 €"}},"Proporcionado por el sitio (normalmente)"]
[null,"Servicios de audio y vídeo","Pantalla",1,{"v":0,"d":"0.00 €"},{"$f":"Datos[[#This Row],[Cantidad estimada]]*Datos[[#This Row],[Coste estimado por unidad]]","v":{"v":0,"d":"0.00 €"}},"Proporcionado por el sitio (normalmente)"]
[null,"Servicios de audio y vídeo","Alquiler de proyector de datos y vídeo XGA",1,{"v":45,"d":"45.00 €"},{"$f":"Datos[[#This Row],[Cantidad estimada]]*Datos[[#This Row],[Coste estimado por unidad]]","v":{"v":45,"d":"45.00 €"}}]
[null,"Servicios de audio y vídeo","Mouse inalámbrico",1,{"v":12,"d":"12.00 €"},{"$f":"Datos[[#This Row],[Cantidad estimada]]*Datos[[#This Row],[Coste estimado por unidad]]","v":{"v":12,"d":"12.00 €"}}]
[null,"Servicios de audio y vídeo","Ladrones eléctricos",1,{"v":0,"d":"0.00 €"},{"$f":"Datos[[#This Row],[Cantidad estimada]]*Datos[[#This Row],[Coste estimado por unidad]]","v":{"v":0,"d":"0.00 €"}},"Proporcionado por el sitio (normalmente)"]
[null,"Servicios de audio y vídeo","Cables de extensión",1,{"v":0,"d":"0.00 €"},{"$f":"Datos[[#This Row],[Cantidad estimada]]*Datos[[#This Row],[Coste estimado por unidad]]","v":{"v":0,"d":"0.00 €"}},"Proporcionado por el sitio (normalmente)"]
[null,"Servicios de audio y vídeo","Micrófono Lavalier",1,{"v":0,"d":"0.00 €"},{"$f":"Datos[[#This Row],[Cantidad estimada]]*Datos[[#This Row],[Coste estimado por unidad]]","v":{"v":0,"d":"0.00 €"}},"Proporcionado por el sitio (normalmente)"]
[null,"Servicios de audio y vídeo","Mano de obra y técnicos AV",1,{"v":300,"d":"300.00 €"},{"$f":"Datos[[#This Row],[Cantidad estimada]]*Datos[[#This Row],[Coste estimado por unidad]]","v":{"v":300,"d":"300.00 €"}}]
[null,"Servicios de audio y vídeo","Impuestos (8,8 %)",null,{"v":31.415999999999997,"d":"31.42 €"},{"$f":"Datos[[#This Row],[Cantidad estimada]]*Datos[[#This Row],[Coste estimado por unidad]]","v":{"v":0,"d":"0.00 €"}}]
[null,"Costes adicionales","Invitación \n(costes de impresión y franqueo)",null,{"v":834,"d":"834.00 €"},{"$f":"Datos[[#This Row],[Cantidad estimada]]*Datos[[#This Row],[Coste estimado por unidad]]","v":{"v":0,"d":"0.00 €"}}]
[null,"Costes adicionales","Tiempo y gasto (T y G)",null,{"v":600,"d":"600.00 €"},{"$f":"Datos[[#This Row],[Cantidad estimada]]*Datos[[#This Row],[Coste estimado por unidad]]","v":{"v":0,"d":"0.00 €"}}]
[null,"Costes adicionales","T y G del personal de la compañía",null,{"v":200,"d":"200.00 €"},{"$f":"Datos[[#This Row],[Cantidad estimada]]*Datos[[#This Row],[Coste estimado por unidad]]","v":{"v":0,"d":"0.00 €"}},"<número de personas en el sitio>"]
[null,"Costes adicionales","T y G de los testimonios de los clientes",null,{"v":100,"d":"100.00 €"},{"$f":"Datos[[#This Row],[Cantidad estimada]]*Datos[[#This Row],[Coste estimado por unidad]]","v":{"v":0,"d":"0.00 €"}}]
[null,"Regalos","Regalo Nº.1",25,{"v":10,"d":"10.00 €"},{"$f":"Datos[[#This Row],[Cantidad estimada]]*Datos[[#This Row],[Coste estimado por unidad]]","v":{"v":250,"d":"250.00 €"}},"<Descripción del artículo de regalo>"]
[null,"Regalos","Regalo Nº. 2",25,{"v":5,"d":"5.00 €"},{"$f":"Datos[[#This Row],[Cantidad estimada]]*Datos[[#This Row],[Coste estimado por unidad]]","v":{"v":125,"d":"125.00 €"}},"<Descripción del artículo de regalo>"]
[null,"Promociones","Regalos de productos",50,{"v":8,"d":"8.00 €"},{"$f":"Datos[[#This Row],[Cantidad estimada]]*Datos[[#This Row],[Coste estimado por unidad]]","v":{"v":400,"d":"400.00 €"}}]
[null,"Promociones","Descuentos de producto",300,{"v":3,"d":"3.00 €"},{"$f":"Datos[[#This Row],[Cantidad estimada]]*Datos[[#This Row],[Coste estimado por unidad]]","v":{"v":900,"d":"900.00 €"}}]
[null,"Promociones","Ofertas especiales",200,{"v":2.5,"d":"2.50 €"},{"$f":"Datos[[#This Row],[Cantidad estimada]]*Datos[[#This Row],[Coste estimado por unidad]]","v":{"v":500,"d":"500.00 €"}}]
[null,"Publicidad","Folletos (desarrollo y producción)",{"v":5000,"d":"5,000"},{"v":0.15,"d":"0.15 €"},{"$f":"Datos[[#This Row],[Cantidad estimada]]*Datos[[#This Row],[Coste estimado por unidad]]","v":{"v":750,"d":"750.00 €"}}]
[null,"Publicidad","Correspondencia",{"v":15000,"d":"15,000"},{"v":0.04,"d":"0.04 €"},{"$f":"Datos[[#This Row],[Cantidad estimada]]*Datos[[#This Row],[Coste estimado por unidad]]","v":{"v":600,"d":"600.00 €"}}]
[null,"Publicidad","Postales",{"v":15000,"d":"15,000"},{"v":0.03,"d":"0.03 €"},{"$f":"Datos[[#This Row],[Cantidad estimada]]*Datos[[#This Row],[Coste estimado por unidad]]","v":{"v":450,"d":"450.00 €"}}]
[null,"Publicidad","Televisión",2,{"v":600,"d":"600.00 €"},{"$f":"Datos[[#This Row],[Cantidad estimada]]*Datos[[#This Row],[Coste estimado por unidad]]","v":{"v":1200,"d":"1,200.00 €"}}]
[null,"Publicidad","Radio",4,{"v":300,"d":"300.00 €"},{"$f":"Datos[[#This Row],[Cantidad estimada]]*Datos[[#This Row],[Coste estimado por unidad]]","v":{"v":1200,"d":"1,200.00 €"}}]
[null,"Publicidad","Periódicos",6,{"v":220,"d":"220.00 €"},{"$f":"Datos[[#This Row],[Cantidad estimada]]*Datos[[#This Row],[Coste estimado por unidad]]","v":{"v":1320,"d":"1,320.00 €"}}]
[null,"Publicidad","Carteles",2,{"v":556,"d":"556.00 €"},{"$f":"Datos[[#This Row],[Cantidad estimada]]*Datos[[#This Row],[Coste estimado por unidad]]","v":{"v":1112,"d":"1,112.00 €"}}]
[null,"Publicidad","Publicidad en autobús",3,{"v":125,"d":"125.00 €"},{"$f":"Datos[[#This Row],[Cantidad estimada]]*Datos[[#This Row],[Coste estimado por unidad]]","v":{"v":375,"d":"375.00 €"}}]
[null,"Relaciones públicas","Eventos benéficos",3,{"v":200,"d":"200.00 €"},{"$f":"Datos[[#This Row],[Cantidad estimada]]*Datos[[#This Row],[Coste estimado por unidad]]","v":{"v":600,"d":"600.00 €"}}]
[null,"Relaciones públicas","Publicidad",4,{"v":200,"d":"200.00 €"},{"$f":"Datos[[#This Row],[Cantidad estimada]]*Datos[[#This Row],[Coste estimado por unidad]]","v":{"v":800,"d":"800.00 €"}}]
[null,"Relaciones públicas","Promociones de empleados",6,{"v":200,"d":"200.00 €"},{"$f":"Datos[[#This Row],[Cantidad estimada]]*Datos[[#This Row],[Coste estimado por unidad]]","v":{"v":1200,"d":"1,200.00 €"}}]
[null,"Relaciones públicas","Patrocinios",3,{"v":200,"d":"200.00 €"},{"$f":"Datos[[#This Row],[Cantidad estimada]]*Datos[[#This Row],[Coste estimado por unidad]]","v":{"v":600,"d":"600.00 €"}}]

{"sheet":"GRÁFICO DE CATEGORÍAS","index":2,"n_rows":8,"n_cols":13,"rows_kept":8,"merged":[[7,1,7,12]]}
["La tabla dinámica y el gráfico de categorías están en esta hoja de cálculo. Encontrará instrucciones útiles sobre cómo usar esta hoja de cálculo en las celdas de esta columna. Presione la flecha abajo para empezar."]
["El título de este libro se encuentra en la celda de la derecha.","PLAN PRESUPUESTARIO MARKETING"]
[]
["Una tabla dinámica de resumen que muestra las categorías principales y sus subtotales empieza en la celda C4. La instrucción siguiente se encuentra en la celda A8.",null,"Categoría principal"]
[null,null,"Comunicaciones","Costes adicionales","Evento","Investigación","Promociones","Publicidad","Redes","Regalos","Relaciones públicas","Servicios de audio y vídeo","Total general"]
[null,"Subtotal estimado",{"v":0,"d":"0.00 €"},{"v":7007,"d":"7,007.00 €"},{"v":357,"d":"357.00 €"},{"v":25650,"d":"25,650.00 €"},{"v":2500,"d":"2,500.00 €"},{"v":375,"d":"375.00 €"},{"v":254,"d":"254.00 €"},{"v":1800,"d":"1,800.00 €"},{"v":3200,"d":"3,200.00 €"},{"v":7100,"d":"7,100.00 €"},{"v":48243,"d":"48,243.00 €"}]
[]
["El gráfico dinámico de columnas que muestra las categorías principales y sus subtotales estimados está en la celda a la derecha."," El gráfico dinámico de columnas que muestra las categorías principales y sus subtotales estimados está en esta celda."]